[Event "Polish Youth B18 Championship 2023"]
[Site "Jastrzebia Gora"]
[Date "2023.03.13"]
[Round "2.20"]
[White "Jedraszek, Pawel"]
[Black "Zeissel, Andrzej"]
[Result "1-0"]
[ECO "B42"]
[WhiteElo "1944"]
[BlackElo "1717"]
[Annotator "TA"]
[PlyCount "91"]
[EventDate "2023.03.11"]
[EventType "swiss"]
[EventCountry "POL"]
[SourceTitle "playchess.com"]
[Source "ChessBase"]
[SourceQuality "1"]
[TimeControl "40/5400+30:1800+30"]

{[%evp 12,91,29,37,39,31,29,30,41,10,16,14,25,18,25,12,35,0,11,0,40,0,41,0,0,0,4,0,11,-43,0,0,0,0,0,0,0,0,0,0,0,0,0,0,0,0,0,0,0,0,0,0,0,-153,0,0,0,0,0,0,136,143,246,237,532,524,524,516,509,502,487,464,4810,3049,4810,4810,29983,29984,29993,29994,29994,29992]} 1. e4 {[%emt 0:00:02]} c5 {[%emt 0:00:06]} 2. Nf3 {[%emt 0:00:05]} e6 {[%emt 0:00:05]} 3. d4 {[%emt 0:00:09]} cxd4 {[%emt 0:00:05]} 4. Nxd4 {[%emt 0:00:05]} a6 {[%emt 0:00:02]} 5. Bd3 {[%emt 0:00:26]} Bc5 {[%emt 0:00:06]} 6. Nb3 {[%emt 0:00:31]} Ba7 {[%emt 0:00:03]} 7. Qe2 $1 {[%emt 0:00:45] 7.Qe2 is better than 7.0-0.} Ne7 {[%emt 0:00:09] B42: Sicilian: Kan Variation: 5 Bd3.} 8. Be3 {[%emt 0:01:43]} O-O {[%emt 0:00:08]} 9. O-O {[%emt 0:02:23]} Nbc6 {[%emt 0:01:02] White has an edge. 9...Bxe3 is not played anymore.} 10. f4 {[%emt 0:04:29]} Bxe3+ {[%emt 0:08:45]} 11. Qxe3 {[%emt 0:00:07]} d6 {[%emt 0:00:05]} 12. Nc3 {[%emt 0:03:20]} b5 {[%emt 0:06:42]} 13. Rad1 {[%emt 0:02:12]} Qc7 {[%emt 0:06:16]} 14. Kh1 {[%emt 0:02:57]} b4 {[%emt 0:06:25]} 15. Ne2 {[%emt 0:00:24] [#]} Bb7 $146 {[%emt 0:03:22]} ({Predecessor:} 15... a5 16. Qg3 a4 17. Nd2 f5 18. Nf3 h6 19. Nfd4 Nxd4 20. Nxd4 Qc5 21. c3 a3 22. exf5 bxc3 23. bxc3 Nxf5 24. Bxf5 exf5 {0-1 Melia,S (2400)-Danielian,E (2478) EU-ch (Women) 13th 2012 (10)}) 16. Ng3 {[%emt 0:06:57]} d5 {[%emt 0:18:20]} 17. Nh5 {[%emt 0:14:46]} (17. Nc5 $5 {[%cal Rf4f5]}) 17... dxe4 {[%emt 0:19:48]} 18. Bxe4 {[%emt 0:00:36]} Rad8 {[%emt 0:00:39]} 19. Nc5 {[%emt 0:06:56]} Bc8 {[%emt 0:01:00]} 20. Nd3 {[%emt 0:13:45]} (20. Qg3 $11 Ng6 21. c3) 20... Qa5 {[%emt 0:09:28]} (20... f5 {simplifies} 21. Bxc6 Nxc6 22. Rc1 a5) 21. Qh3 {[%emt 0:02:34][%cal Oh5f6] White wants to mate with Nf6+!} f5 {[%emt 0:02:40]} 22. Qg3 $1 {[%emt 0:10:34][%csl Gh5][%cal Rg3g7]} g6 {[%emt 0:01:49]} 23. Bxc6 {[%emt 0:00:51]} Nxc6 {[%emt 0:00:02]} 24. Ne5 {[%emt 0:03:41] Nxg6 would be deadly.} Nxe5 {[%emt 0:01:16]} 25. fxe5 {[%emt 0:02:32]} Rxd1 {[%emt 0:03:11]} (25... Qxa2 $2 26. Nf6+ Rxf6 27. Rxd8+ Rf8 28. Qh4 $18) 26. Rxd1 {[%emt 0:00:03]} Rd8 $1 {[%emt 0:00:24]} 27. Re1 {[%emt 0:02:33]} Bb7 {[%emt 0:02:36][%cal Od8d2]} 28. Nf6+ {[%emt 0:01:17]} Kg7 {[%emt 0:01:40]} 29. Qh4 {[%emt 0:08:00]} h5 {[%emt 0:04:03]} 30. h3 {[%emt 0:01:29]} Kh6 {[%emt 0:02:10] Inhibits Qg5+. Hoping for ...b3.} 31. Qg3 {[%emt 0:02:06]} b3 $1 {[%emt 0:02:16]} 32. axb3 $2 {[%emt 0:00:26] [#]} (32. c3 $1 $11 bxa2 33. Qe3+ (33. b4 Qc7 $17) 33... g5 34. h4) 32... Rd2 $2 {[%emt 0:01:05]} ({Black should try} 32... Qd2 $1 $17 {White must now prevent ...f4.} 33. Rf1 Qg5 34. Qxg5+ Kxg5) 33. Rg1 $11 {[%emt 0:00:01]} Rxc2 {[%emt 0:00:39] And now ...Qd2 would win.} 34. Ng8+ {[%emt 0:01:16][%cal Bf6g8,Bg8e7,Be7g6,Bg6f4,Bf4e6][%mdl 32]} Kg7 {[%emt 0:00:19][%cal Oa5d2] Strongly threatening ...Qd2!} 35. Ne7 $36 {[%emt 0:00:06][%mdl 2048] White is pushing.} Kf7 {[%emt 0:00:40]} (35... Rxg2 $11 {remains equal.} 36. Rxg2 Bxg2+ 37. Qxg2 (37. Kxg2 Qd2+ 38. Kg1 Qd1+ 39. Kh2 Qe2+ 40. Kh1 Qf1+ 41. Kh2 Qe2+ 42. Qg2 Qxe5+ 43. Kh1 Qe1+ 44. Kh2 Qe5+ 45. Kh1 Qe1+ 46. Kh2 Qe5+ $11) 37... Qe1+ 38. Qg1 (38. Kh2 Qxe5+ 39. Kh1 Qe1+ 40. Kh2 Qe5+ 41. Kh1 Qe1+ 42. Kh2 Qe5+ $11) 38... Qe4+ 39. Qg2 Qe1+ 40. Qg1 (40. Kh2 Qxe5+ 41. Kh1 Qe1+ 42. Kh2 Qe5+ 43. Kh1 Qe1+ 44. Kh2 Qe5+ $11) 40... Qe4+ 41. Qg2 Qe1+) 36. Nxg6 $16 {[%emt 0:00:52]} (36. Qg5 $2 Bxg2+ 37. Rxg2 Qe1+ 38. Kh2 Qxe5+ 39. Kh1 Qe1+ 40. Kh2 Qe5+ 41. Kh1 Rxg2 42. Kxg2 Qxb2+ 43. Kg1 Qb1+ 44. Kg2 Qc2+ 45. Kf1 Qd3+ 46. Kf2 Qxb3 47. Nxg6 Qb2+ 48. Kf3 Qc3+ 49. Kf2 Qg7 50. Qe7+ Kxg6 $19) 36... Qd2 {[%emt 0:00:23]} (36... Be4 $16 {keeps fighting.} 37. Qg5 Bxg2+ 38. Rxg2 Qe1+ 39. Kh2 Rxg2+ 40. Qxg2 Qe3) 37. Nf4 $18 {[%emt 0:01:39]} Ke7 $2 {[%emt 0:00:22]} (37... Bd5 38. Nxh5 Ke7) 38. Qg7+ {[%emt 0:00:54][%mdl 64] Skewer} ({Less strong is} 38. Nxh5 Kd7 39. Nf4 Be4 40. Qg7+ Kc6 41. Nxe6 Kb6 $18) 38... Ke8 {[%emt 0:00:36]} 39. Nxe6 {[%emt 0:01:39]} Be4 {[%emt 0:00:41]} 40. Qf8+ {[%emt 0:00:00]} Kd7 {[%emt 0:00:00][%cal Re4g2] [#]} 41. Nc5+ $1 {[%emt 0:06:18]} Kc7 {[%emt 0:06:27]} (41... Rxc5 $142 42. Qxc5 Ke6) 42. Nxe4 {[%emt 0:04:06]} ({Stronger than} 42. Nxa6+ Kb6 43. Qb8+ Bb7 $11) 42... fxe4 {[%emt 0:00:08]} 43. e6 {[%emt 0:00:48] White threatens e7 and mate.} e3 {[%emt 0:00:23]} 44. e7 {[%emt 0:00:10] White mates.} e2 {[%emt 0:00:10]} 45. e8=Q {[%emt 0:00:16]} (45. e8=B $2 {is the wrong capture.} e1=Q 46. Qg7+ Kb8 47. Rxe1 Qxe1+ 48. Kh2 Qxe8 $19) 45... e1=Q {[%emt 0:00:10]} 46. Qxe1 {[%emt 0:00:20] A cool game by Jedraszek.   Weighted Error Value: White=0.09 (flawless) /Black=0.46} (46. Rxe1 $2 Qxg2#) 1-0

[Event "Polish Youth B18 Championship 2023"]
[Site "Jastrzebia Gora"]
[Date "2023.03.13"]
[Round "2.21"]
[White "Karut, Kacper"]
[Black "Smuda, Tomasz"]
[Result "1-0"]
[ECO "B18"]
[WhiteElo "1904"]
[BlackElo "1654"]
[Annotator "TA"]
[PlyCount "75"]
[EventDate "2023.03.11"]
[EventType "swiss"]
[EventCountry "POL"]
[SourceTitle "playchess.com"]
[Source "ChessBase"]
[SourceQuality "1"]
[TimeControl "40/5400+30:1800+30"]

{[%evp 11,75,16,14,4,21,0,4,-33,-20,-31,-3,-14,7,4,10,8,18,-14,8,-33,24,18,77,85,81,56,73,72,74,62,99,75,103,58,115,118,120,73,81,87,70,85,167,149,179,162,166,163,267,120,145,84,309,73,69,0,870,856,881,871,29986,29987,29991,29992,29997,29998]} 1. e4 {[%emt 0:00:01]} c6 {[%emt 0:00:12]} 2. d4 {[%emt 0:00:21]} d5 {[%emt 0:00:08]} 3. Nc3 {[%emt 0:00:06]} dxe4 {[%emt 0:00:14]} 4. Nxe4 {[%emt 0:00:04]} Bf5 {[%emt 0:00:14]} 5. Ng3 {[%emt 0:00:16]} Bg6 {[%emt 0:00:07]} 6. Nh3 {[%emt 0:00:50]} Nd7 {[%emt 0:00:05] 6...Nf6 is setting a new trend.} 7. Nf4 {[%emt 0:00:31] B18: Classical Caro-Kann: 4...Bf5 sidelines.} Qc7 {[%emt 0:00:04] is the legacy move (7...Ngf6).} 8. c3 {[%emt 0:03:26]} Ngf6 {[%emt 0:06:15]} 9. Be2 {[%emt 0:03:12] The position is equal.} e6 {[%emt 0:08:56] [#]} 10. Be3 $146 {[%emt 0:03:25]} ({Predecessor:} 10. Ngh5 O-O-O 11. Nxf6 gxf6 12. Qa4 a6 13. Be3 Bd6 14. g3 Be4 15. Rf1 Bf5 16. O-O-O e5 17. Nh5 Be7 18. Qb3 {½-½ Kurmann,O (2431)-Paichadze,L (2489) Universiad Men 26th 2011 (5)}) 10... a6 {[%emt 0:10:08]} 11. Qd2 {[%emt 0:04:05]} c5 {[%emt 0:07:35]} 12. O-O {[%emt 0:08:03]} Be7 {[%emt 0:06:18]} 13. Bf3 {[%emt 0:04:31]} Rd8 {[%emt 0:03:52][%cal Od7e5]} 14. Rad1 {[%emt 0:12:08]} O-O {[%emt 0:03:33][%cal Od7e5]} 15. h4 {[%emt 0:07:57][%cal Bh2h4,Bh4h5][%mdl 32]} Nb6 {[%emt 0:18:48]} (15... Ne5 $15) 16. Qe2 $11 {[%emt 0:05:10]} Nbd5 {[%emt 0:08:52]} (16... cxd4 $11 {remains equal.} 17. cxd4 Bd6) 17. Nxd5 {[%emt 0:08:07]} Nxd5 {[%emt 0:01:34]} 18. Bxd5 {[%emt 0:05:16]} Rxd5 {[%emt 0:02:30]} 19. h5 {[%emt 0:00:24]} Bf5 {[%emt 0:01:54]} 20. c4 {[%emt 0:00:52]} Rd7 {[%emt 0:05:58]} 21. Nxf5 {[%emt 0:00:55]} exf5 {[%emt 0:00:15]} 22. d5 {[%emt 0:01:16]} f4 {[%emt 0:02:21]} (22... Bd6 $14) 23. Bd2 $16 {[%emt 0:01:50]} Bd6 {[%emt 0:05:36]} 24. Bc3 {[%emt 0:04:19]} (24. Rfe1 $142) 24... Re7 {[%emt 0:01:12]} 25. Qg4 {[%emt 0:01:45][%csl Gc3][%cal Rg4g7] [#]} f5 {[%emt 0:00:41]} 26. Qh3 {[%emt 0:04:12]} f3 {[%emt 0:02:28]} 27. Qxf3 $18 {[%emt 0:00:40]} Re4 {[%emt 0:00:37] [#]} 28. Rfe1 $1 {[%emt 0:07:13]} Rxc4 {[%emt 0:01:31]} 29. Re6 {[%emt 0:00:51]} b5 {[%emt 0:01:57]} (29... Rf4 {keeps fighting.} 30. Qh3 Rg4) 30. Qe2 {[%emt 0:04:53]} (30. h6 $18 {is the precise move to win.} g6 31. Rde1) 30... Rh4 {[%emt 0:01:03]} 31. g3 {[%emt 0:03:05]} (31. h6 $142 Qd8 32. Rd3 (32. hxg7 {leads to mate.} Rh1+ {[%mdl 64] Decoy, Back Rank, Clearance} 33. Kxh1 Qh4+ 34. Kg1 Qh2+ 35. Kf1 Qh1#) 32... Rxh6 33. Rxh6 gxh6 34. Qe6+ Rf7 35. a3 (35. Qxh6 b4 $14)) 31... Rc4 $2 {[%emt 0:00:30]} (31... Bxg3 $2 32. fxg3 Qxg3+ 33. Qg2 Qxg2+ 34. Kxg2 $18) (31... Rg4 $16) 32. Re8 $2 {[%emt 0:00:25]} (32. f3 $18) 32... Qf7 {[%emt 0:00:29]} 33. Re6 {[%emt 0:02:02] White is more active.} (33. Rxf8+ $14 Kxf8 34. h6 gxh6 35. Be5) 33... f4 $2 {[%emt 0:00:32][%mdl 8192]} 34. Rxd6 {[%emt 0:01:17]} fxg3 {[%emt 0:00:28]} 35. fxg3 {[%emt 0:01:15] Threatens to win with h6.} Re8 {[%emt 0:00:32]} 36. Re6 {[%emt 0:00:09][%cal Bd6e6,Be6e7,Be7e8][%mdl 32] White mates.} Rd8 {[%emt 0:00:29]} 37. Re7 {[%emt 0:00:17]} Rxd5 {[%emt 0:00:31]} 38. Re8+ {[%emt 0:00:13] Weighted Error Value: White=0.30/Black=0.49} 1-0

[Event "Polish Youth B18 Championship 2023"]
[Site "Jastrzebia Gora"]
[Date "2023.03.13"]
[Round "2.22"]
[White "Czarniecki, Pawel"]
[Black "Kozlowski, Franciszek"]
[Result "0-1"]
[ECO "A06"]
[WhiteElo "1625"]
[BlackElo "1829"]
[Annotator "NA RC COMBH"]
[PlyCount "120"]
[EventDate "2023.03.11"]
[EventType "swiss"]
[EventCountry "POL"]
[SourceTitle "playchess.com"]
[Source "ChessBase"]
[SourceQuality "1"]
[TimeControl "40/5400+30:1800+30"]

1. Nf3 {[%emt 0:00:02]} d5 {[%emt 0:00:35]} 2. g3 {[%emt 0:00:05]} c6 {[%emt 0:00:04]} 3. Bg2 {[%emt 0:00:05]} g6 {[%emt 0:01:09]} 4. O-O {[%emt 0:02:02]} Bg7 {[%emt 0:00:20]} 5. d3 {[%emt 0:01:26]} Nf6 {[%emt 0:03:48]} 6. c3 {[%emt 0:01:39]} O-O {[%emt 0:02:04]} 7. Nbd2 {[%emt 0:01:01]} Qc7 {[%emt 0:02:20]} 8. e4 {[%emt 0:02:26]} dxe4 {[%emt 0:03:24]} 9. dxe4 {[%emt 0:01:55]} Rd8 {[%emt 0:00:59]} 10. Qc2 {[%emt 0:00:45]} b6 {[%emt 0:10:46]} 11. Re1 {[%emt 0:05:26]} e5 {[%emt 0:05:02]} 12. b4 {[%emt 0:05:22]} Qe7 {[%emt 0:07:05]} 13. a3 {[%emt 0:02:36]} Nbd7 {[%emt 0:06:31]} 14. Bb2 {[%emt 0:05:18]} Nf8 {[%emt 0:06:44]} 15. Nc4 {[%emt 0:06:59]} Ne8 {[%emt 0:01:16]} 16. Ne3 {[%emt 0:02:17]} Ne6 {[%emt 0:02:20]} 17. Bf1 {[%emt 0:10:22]} Bb7 {[%emt 0:03:25]} 18. Rad1 {[%emt 0:01:58]} Nd6 {[%emt 0:08:45]} 19. c4 {[%emt 0:05:38]} Ng5 {[%emt 0:04:41]} 20. Nxg5 {[%emt 0:01:05]} Qxg5 {[%emt 0:00:08]} 21. c5 {[%emt 0:03:19]} Ne8 {[%emt 0:01:23]} 22. cxb6 {[%emt 0:04:31]} axb6 {[%emt 0:00:23]} 23. Nc4 {[%emt 0:00:11]} b5 {[%emt 0:03:50]} 24. Na5 {[%emt 0:01:33]} Qe7 {[%emt 0:02:16]} 25. Rxd8 {[%emt 0:07:14]} Rxd8 {[%emt 0:00:47]} 26. Nxc6 {[%emt 0:04:16]} Qc7 {[%emt 0:01:02]} 27. Bxb5 {[%emt 0:00:43]} Rc8 {[%emt 0:00:41]} 28. Rc1 {[%emt 0:00:59]} Nd6 {[%emt 0:00:43]} 29. Ba4 {[%emt 0:02:48]} Bh6 {[%emt 0:01:12]} 30. f4 {[%emt 0:00:45]} Bxc6 {[%emt 0:01:43]} 31. Bxc6 {[%emt 0:02:11]} Qb6+ {[%emt 0:00:35]} 32. Kg2 {[%emt 0:04:52]} Qe3 {[%emt 0:01:39]} 33. Rd1 {[%emt 0:10:29]} Rxc6 {[%emt 0:00:58]} 34. Qxc6 {[%emt 0:01:39]} Qe2+ {[%emt 0:00:28]} 35. Kh3 {[%emt 0:00:15]} Qh5+ {[%emt 0:00:15]} 36. Kg2 {[%emt 0:00:12]} Qxd1 {[%emt 0:00:47]} 37. Bxe5 {[%emt 0:00:44]} Qe2+ {[%emt 0:00:12]} 38. Kh3 {[%emt 0:00:13]} Nxe4 {[%emt 0:00:44]} 39. Bd4 {[%emt 0:02:22]} Qf1+ {[%emt 0:01:30]} 40. Kh4 {[%emt 0:00:00]} g5+ {[%emt 0:00:00]} 41. Kg4 {[%emt 0:03:05]} Qd1+ {[%emt 0:07:13]} 42. Kh3 {[%emt 0:07:56]} Qxd4 {[%emt 0:01:21]} 43. Qxh6 {[%emt 0:00:20]} Qd7+ {[%emt 0:02:04]} 44. Kg2 {[%emt 0:01:25]} g4 {[%emt 0:00:24]} (44... Qd2+ $142 45. Kh3 Nf2+ 46. Kg2 Ng4+ {[%mdl 64] Discovered Attack} 47. Kf3 Nxh6 48. fxg5 Qd3+ 49. Kf4 Nf5 50. Ke5 Ng7 51. Kf4 Ne6+ 52. Kg4 Qe4+ 53. Kh5 Ng7+ 54. Kh6 Qg6#) 45. f5 {[%emt 0:00:51]} Qxf5 {[%emt 0:01:22]} 46. Qe3 {[%emt 0:00:23]} Ng5 {[%emt 0:01:04]} 47. Qe2 Qd5+ {[%emt 0:00:21]} 48. Kf2 {[%emt 0:06:53]} Qd4+ {[%emt 0:01:01]} 49. Kf1 {[%emt 0:06:00]} Nf3 {[%emt 0:01:10]} 50. Qf2 {[%emt 0:00:30]} Qa1+ {[%emt 0:00:34]} 51. Ke2 {[%emt 0:01:21]} Qb2+ {[%emt 0:00:33]} 52. Kf1 {[%emt 0:00:52]} Qc1+ {[%emt 0:01:06]} 53. Ke2 {[%emt 0:01:30]} Qxa3 {[%emt 0:00:59]} 54. Qc5 {[%emt 0:01:13]} Qb2+ {[%emt 0:01:37]} 55. Ke3 {[%emt 0:00:17]} Qd2+ {[%emt 0:00:53]} 56. Ke4 {[%emt 0:00:14]} Ng5+ {[%emt 0:04:16]} 57. Kf5 {[%emt 0:02:38]} Ne6 {[%emt 0:00:41]} 58. Qc8+ $19 {[%emt 0:00:14]} Kg7 {[%emt 0:00:04]} 59. Qc4 {[%emt 0:02:49]} h5 {[%emt 0:01:38]} 60. b5 {[%emt 0:00:48]} Qe3 {[%emt 0:00:20]} 0-1

[Event "Polish Youth B18 Championship 2023"]
[Site "Jastrzebia Gora"]
[Date "2023.03.13"]
[Round "3.1"]
[White "Kaliszuk, Kamil"]
[Black "Turski, Bartlomiej"]
[Result "1/2-1/2"]
[ECO "E73"]
[WhiteElo "2217"]
[BlackElo "2352"]
[Annotator "TA"]
[PlyCount "44"]
[EventDate "2023.03.11"]
[EventType "swiss"]
[EventCountry "POL"]
[SourceTitle "playchess.com"]
[Source "ChessBase"]
[SourceQuality "1"]
[TimeControl "40/5400+30:1800+30"]

{[%evp 13,44,41,40,27,41,32,37,39,31,37,54,32,29,15,10,10,8,11,48,49,77,62,87,84,79,40,25,0,77,0,44,0,74]} 1. d4 {[%emt 0:00:43]} Nf6 {[%emt 0:00:10]} 2. c4 {[%emt 0:00:12]} g6 {[%emt 0:03:50]} 3. Nc3 {[%emt 0:00:31]} Bg7 {[%emt 0:00:21]} 4. e4 {[%emt 0:00:22]} d6 {[%emt 0:00:05]} 5. Be2 {[%emt 0:00:42]} O-O {[%emt 0:01:48]} 6. Be3 {[%emt 0:01:25]} c5 {[%emt 0:12:31]} 7. d5 {[%emt 0:02:17]} e6 {[%emt 0:04:18]} 8. Nf3 {[%emt 0:00:43] E73: King's Indian: Averbakh Variation without 6...c5.} Re8 {[%emt 0:02:19]} 9. Nd2 {[%emt 0:02:10]} Na6 {[%emt 0:05:40]} 10. O-O {[%emt 0:06:37] White is slightly better.} Nc7 11. a4 {[%emt 0:07:47]} Na6 {[%emt 0:08:13][%cal Bc7a6,Ba6b4,Bb4c6,Bc6d4][%mdl 32]} 12. Bf4 {[%emt 0:25:41]} Nb4 {[%emt 0:13:17] [#]} 13. dxe6 $146 {[%emt 0:07:55]} ({Predecessor:} 13. Nb5 e5 14. Be3 a6 15. Nc3 Nd7 16. Nf3 Qe7 17. Bg5 Qf8 18. Ne1 Bh6 19. Bh4 {0-1 Argandona Riveiro,I (2423)-Martinez Duany,L (2527) San Sebastian Gros op 28th 2018 (4)}) 13... Rxe6 {[%emt 0:03:17]} 14. Bg5 {[%emt 0:08:31]} h6 {[%emt 0:15:31]} 15. Bh4 {[%emt 0:00:46]} Nc6 {[%emt 0:03:08]} 16. f4 {[%emt 0:04:14]} Nd4 {[%emt 0:05:18]} 17. Bd3 {[%emt 0:01:38]} Re8 {[%emt 0:07:25] [#]} 18. Nd5 $1 {[%emt 0:05:48]} Be6 {[%emt 0:01:52]} 19. Ne3 {[%emt 0:07:27]} (19. f5 $5 gxf5 20. Nxf6+ Bxf6 21. Bxf6 Qxf6 22. exf5 Nxf5 23. Qg4+ Qg7 24. Qxg7+ Nxg7 25. Ne4 $14) 19... Bd7 {[%emt 0:01:02]} 20. Nd5 {[%emt 0:01:56]} (20. Nf3 $11) 20... Be6 $1 $16 {[%emt 0:01:09]} 21. Ne3 {[%emt 0:04:26]} (21. f5 $5 gxf5 22. Bxf6 Bxf6 23. Nxf6+ Qxf6 24. exf5 Nxf5 25. Qg4+ Qg7 26. Qxg7+ Nxg7 27. Ne4 $14) 21... Bd7 $1 {[%emt 0:00:07]} 22. Nd5 {[%emt 0:01:42]} Be6 $1 {[%emt 0:00:09] Weighted Error Value: White=0.17 (very precise) /Black=0.07 (flawless)} 1/2-1/2

[Event "Polish Youth B18 Championship 2023"]
[Site "Jastrzebia Gora"]
[Date "2023.03.13"]
[Round "3.2"]
[White "Dzida, Kamil"]
[Black "Dziendziel, Mateusz"]
[Result "1-0"]
[ECO "D52"]
[WhiteElo "2333"]
[BlackElo "2084"]
[Annotator "TA"]
[PlyCount "111"]
[EventDate "2023.03.11"]
[EventType "swiss"]
[EventCountry "POL"]
[SourceTitle "playchess.com"]
[Source "ChessBase"]
[SourceQuality "1"]
[TimeControl "40/5400+30:1800+30"]

{[%evp 16,111,33,21,36,36,33,22,28,15,26,16,25,22,35,20,19,20,17,20,25,12,16,16,21,13,20,-25,-25,-22,-16,-23,2,7,5,0,27,21,14,0,0,0,7,0,0,0,0,0,0,0,0,0,0,-78,0,0,0,0,0,0,0,0,0,0,18,18,48,48,42,28,20,21,86,94,184,178,191,127,127,127,1252,118,178,160,212,131,156,149,485,273,639,626,630,630,904,883,851,786]} 1. d4 {[%emt 0:00:01]} d5 {[%emt 0:00:08]} 2. c4 {[%emt 0:00:11]} c6 {[%emt 0:00:01]} 3. Nf3 {[%emt 0:00:09]} Nf6 {[%emt 0:00:02]} 4. Nc3 {[%emt 0:00:19]} e6 {[%emt 0:00:05]} 5. Bg5 {[%emt 0:01:38]} Nbd7 {[%emt 0:00:18]} 6. e3 {[%emt 0:00:20]} Qa5 {[%emt 0:00:03]} 7. cxd5 {[%emt 0:01:46]} Nxd5 {[%emt 0:00:06]} 8. Qd2 {[%emt 0:00:28]} Bb4 {[%emt 0:02:35]} 9. Rc1 {[%emt 0:00:06]} Nxc3 {[%emt 0:00:34] D52: Queen's Gambit Declined: Cambridge Springs Variation.} 10. bxc3 {[%emt 0:01:31]} Ba3 {[%emt 0:00:02]} 11. Rb1 {[%emt 0:01:35]} b6 {[%emt 0:04:56] The position is equal.} 12. Bd3 {[%emt 0:03:53]} Ba6 {[%emt 0:00:30]} 13. O-O {[%emt 0:01:50]} Bxd3 {[%emt 0:04:48]} 14. Qxd3 {[%emt 0:00:06]} O-O {[%emt 0:00:12]} 15. Bh4 {[%emt 0:10:21]} Rfe8 {[%emt 0:01:11]} 16. c4 {[%emt 0:05:21]} Bf8 {[%emt 0:01:34] [#]} 17. Rfd1 $146 {[%emt 0:01:55]} ({Predecessor:} 17. Ng5 Nf6 18. f4 Qf5 19. e4 Qg6 20. Rbe1 Rad8 21. Nf3 Rc8 22. Ne5 Qh5 23. Re3 Ng4 24. Rh3 f5 25. Qe2 Nf6 26. Qc2 {1-0 Brunner,N (2454)-Baeumer,L (2238) SUI-chT Switzerland 2022 (1.4)}) 17... Rac8 {[%emt 0:02:52]} 18. h3 {[%emt 0:08:24]} h6 {[%emt 0:02:24]} 19. Bg3 {[%emt 0:02:38]} c5 {[%emt 0:08:52]} 20. d5 {[%emt 0:03:31]} exd5 {[%emt 0:00:13]} 21. Qf5 {[%emt 0:12:17]} Qa4 {[%emt 0:01:31]} 22. Qxd5 {[%emt 0:07:19]} Nf6 {[%emt 0:00:35]} 23. Qd3 {[%emt 0:04:50]} g6 {[%emt 0:12:13]} 24. Be5 {[%emt 0:07:47]} Bg7 {[%emt 0:00:44]} 25. Qb3 {[%emt 0:02:11]} Qa6 {[%emt 0:07:43]} 26. Bxf6 {[%emt 0:03:51]} Bxf6 {[%emt 0:00:08]} 27. Ne1 {[%emt 0:01:52]} Qb7 {[%emt 0:10:26]} 28. a4 {[%emt 0:00:20]} Qc6 {[%emt 0:00:24]} 29. Nd3 {[%emt 0:02:31]} g5 {[%emt 0:01:24] Inhibits Nf4.} 30. Nc1 {[%emt 0:04:32]} Rcd8 {[%emt 0:02:13]} 31. Ne2 {[%emt 0:00:06]} Be5 {[%emt 0:00:48]} 32. Qc2 {[%emt 0:00:36]} Kg7 {[%emt 0:00:41]} 33. Qb3 {[%emt 0:06:47]} h5 {[%emt 0:02:04]} 34. Qb5 {[%emt 0:01:30]} (34. Nc3 $11 {remains equal.}) 34... Qc7 {[%emt 0:00:57]} ({Better is} 34... Qg6 $17 35. Qb3 g4) 35. Rd5 $11 {[%emt 0:00:21]} Rxd5 {[%emt 0:01:57]} 36. cxd5 {[%emt 0:00:02]} Rd8 {[%emt 0:00:16]} 37. Qc4 {[%emt 0:00:04]} Qd6 {[%emt 0:02:08]} 38. Rd1 {[%emt 0:00:14]} h4 {[%emt 0:06:44]} 39. Kf1 {[%emt 0:03:30]} Bf6 {[%emt 0:03:31]} 40. Ng1 {[%emt 0:00:00]} Qe5 {[%emt 0:00:00]} 41. Nf3 {[%emt 0:03:09]} Qf5 {[%emt 0:06:56]} 42. Nh2 {[%emt 0:07:46]} Qe5 {[%emt 0:01:35]} 43. Ng4 {[%emt 0:01:06]} Qf5 {[%emt 0:04:18]} (43... Qc3 $11 44. Qe2 Qb3) 44. Ke2 {[%emt 0:06:08]} Re8 {[%emt 0:06:09] [#]} (44... Be5 $16) 45. d6 $1 $18 {[%emt 0:02:19] aiming for d7.} Rd8 {[%emt 0:02:51]} 46. Qd5 {[%emt 0:05:05]} (46. e4 $18 Re8 47. f3) 46... Kg6 {[%emt 0:18:19]} 47. d7 {[%emt 0:06:09] Hoping for Qxf5+. Really sharp! White is more active.} c4 $2 {[%emt 0:01:32][%mdl 8192]} 48. e4 $2 {[%emt 0:05:13]} (48. Qxc4 Rxd7 49. e4 Re7 $14) (48. Qc6 $18 {is the precise move to win.}) 48... Qxd5 {[%emt 0:00:45]} (48... Qe6 $16 49. a5 (49. Nxf6 Kxf6 50. Ke3 c3 $11) 49... c3) 49. Rxd5 $16 {[%emt 0:00:01][%mdl 4096] [#] Endgame Black must now prevent Rd6. KRB-KRN} Bb2 {[%emt 0:03:58]} (49... Bc3 $16 {keeps fighting.} 50. Rd6+ (50. Ne3 Kf6 $16) 50... Kg7) 50. Rd6+ {[%emt 0:00:01]} Kg7 {[%emt 0:01:01]} 51. Ne3 {[%emt 0:00:01]} c3 {[%emt 0:01:22][%mdl 8192]} (51... Kf8 $16 {is more resistant.} 52. Rd5 (52. Nxc4 Ke7 $16) 52... Ke7) 52. Kd3 {[%emt 0:00:02]} (52. Nf5+ $142 Kg8 53. Kd3) 52... a6 $2 {[%emt 0:01:18]} (52... f6 53. Nf5+ Kf7) 53. Nf5+ $18 {[%emt 0:00:22] White is clearly winning.} ({Less strong is} 53. Rxb6 Rxd7+ 54. Kc4 Rd2 $16) 53... Kf8 {[%emt 0:00:25]} 54. Rd5 {[%emt 0:00:01]} (54. Rxb6 Rxd7+ 55. Nd6 a5 $16) 54... b5 {[%emt 0:00:36]} 55. axb5 {[%emt 0:00:06]} axb5 {[%emt 0:00:05]} 56. Kc2 {[%emt 0:00:26] Weighted Error Value: White=0.33/Black=0.33} ({Weaker is} 56. Rxb5 Rxd7+ 57. Rd5 Ke8 $16) 1-0